bitfinex/quotes_ETHUSD_20220226
["timestamp","ask_amount","ask_price","bid_price","bid_amount"]
[1645839286500,3.8533,2824.5,2824.1,7.694e-05]
[1645839286703,3.8533,2824.5,2823.6,0.02311123]
[1645839286704,10.0,2824.1,2823.6,0.02311123]
[1645839286904,16.1533,2824.2,2822.8,0.00478069]
[1645839286905,0.3533,2823.6,2822.8,0.00478069]
[1645839287105,0.3533,2823.3,2822.6,0.45478069]
[1645839287356,0.3533,2823.3,2822.7,0.00478702]
[1645839287554,0.3533,2823.3,2822.5,0.00478702]
[1645839288159,0.7949,2823.3,2822.5,0.00478702]
[1645839288359,1.2394105,2823.0,2822.5,0.00478702]
[1645839288559,0.25,2822.9,2822.4,1.0]
[1645839291404,0.25,2822.9,2822.5,0.00577497]
[1645839292304,0.25,2822.9,2822.6,1.19490377]
[1645839292503,0.25,2822.9,2822.6,0.00577489]
[1645839293112,0.3533,2822.8,2822.6,0.00577489]
[1645839293505,0.3533,2822.8,2822.0,1.23483161]
[1645839293704,0.3533,2822.8,2822.6,0.00577481]
[1645839294206,0.6033,2822.9,2822.6,0.00577481]
[1645839295246,0.6033,2822.9,2821.2,8.67036452]
[1645839295446,0.6033,2822.9,2821.2,8.97036452]
[1645839296246,0.6033,2822.9,2821.2,9.47036452]
[1645839296446,0.6033,2822.9,2821.2,8.97036452]
[1645839296746,0.6033,2822.9,2821.9,1.43349832]
[1645839296947,0.25,2822.9,2821.9,1.43349832]
[1645839299794,0.00372242,2822.5,2822.1,0.0057758]
[1645839301094,0.25,2822.9,2822.1,0.00577576]
[1645839301095,0.00372242,2822.4,2822.1,0.00577576]
[1645839301795,0.25,2822.9,2821.9,2.79155968]
[1645839301997,0.25,2822.9,2822.7,1.19354016]
[1645839303457,0.25,2822.9,2822.7,1.54684016]
[1645839303458,0.00372242,2822.9,2822.7,1.54684016]
[1645839303850,0.00372242,2822.9,2822.7,1.19354016]
[1645839304048,0.00372242,2822.9,2822.7,2.19354016]
[1645839304447,0.00372242,2822.9,2822.8,0.3533]
[1645839304650,0.00316003,2822.9,2822.8,1.3533]
[1645839305253,0.00316003,2822.9,2822.8,1.0]
[1645839305454,0.25,2824.1,2822.8,1.0]
[1645839305455,0.25,2824.1,2822.8,1.3533]
[1645839305653,0.25,2824.1,2822.9,0.00476136]
[1645839305855,0.00316003,2823.0,2822.9,0.00476136]
[1645839306095,0.00316003,2823.0,2822.9,1.3533]
[1645839306493,0.00316003,2823.0,2822.9,12.8783]
[1645839307092,0.00316003,2823.1,2822.9,12.8783]
[1645839307292,0.00316003,2823.1,2823.0,12.35290877]
[1645839307492,0.00316003,2823.1,2823.0,1.97314741]
[1645839307695,0.00316003,2823.1,2823.0,1.7783]
[1645839308092,0.25,2824.7,2823.0,1.7783]
[1645839308292,0.25,2824.7,2823.1,0.00476136]
[1645839308493,0.25,2824.7,2823.2,0.7783]
[1645839308699,0.25,2824.7,2823.5,1.0]
[1645839308892,0.22228638,2824.7,2823.6,0.00476136]
[1645839309293,0.22228638,2824.7,2824.0,1.35799702]
[1645839311746,0.00372797,2824.5,2824.0,1.35799702]
[1645839312745,0.22228638,2824.7,2824.0,1.35799702]
[1645839313048,0.00111839,2824.4,2824.0,1.35799702]
[1645839313899,0.22228638,2824.7,2824.0,1.35799702]
[1645839314095,0.00111839,2824.3,2824.0,1.35799702]
[1645839315102,0.22228638,2824.7,2824.0,1.35799702]
[1645839315304,0.00372797,2824.3,2824.0,1.35799702]
[1645839316304,0.22228638,2824.7,2824.0,1.35799702]
[1645839316509,0.00365917,2824.3,2824.0,1.35799702]
[1645839317539,0.22228638,2824.7,2824.0,1.35799702]
[1645839317741,0.00365917,2824.3,2824.0,1.35799702]
[1645839318543,0.00365917,2824.3,2823.6,0.00476136]
[1645839318744,0.8855886,2824.6,2823.4,0.00476136]
[1645839318944,0.00365917,2824.3,2823.4,0.00476136]
[1645839319946,0.8855886,2824.6,2823.8,1.2122052]
[1645839320148,0.00303512,2824.0,2823.8,1.2122052]
[1645839320347,0.00303512,2824.0,2823.8,1.21696656]
[1645839320546,0.00303512,2824.0,2823.8,1.2122052]
[1645839321004,0.22228638,2824.7,2823.8,1.5655052]
[1645839321205,0.22228638,2824.7,2823.8,1.57026656]
[1645839321407,0.00303512,2824.0,2823.8,1.57026656]
[1645839321605,0.00303512,2824.0,2823.8,1.5155052]
[1645839322208,0.22228638,2824.7,2823.8,1.5155052]
[1645839322407,0.22228638,2824.7,2823.8,0.00476136]
[1645839322608,0.00303512,2824.0,2823.6,0.35806136]
[1645839322809,0.00303512,2824.0,2823.7,0.00476136]
[1645839323011,0.00303512,2824.0,2823.5,1.6533]
[1645839323411,0.22228638,2824.7,2823.5,1.0]
[1645839323609,0.22228638,2824.7,2824.2,1.24129656]
[1645839323807,0.22228638,2824.7,2823.6,0.00476136]
[1645839323808,0.23442327,2824.7,2823.6,0.00476136]
[1645839324608,0.22228638,2824.7,2823.6,0.00476136]
[1645839324844,0.00312568,2824.3,2823.9,1.41735439]
[1645839325952,0.22228638,2824.7,2823.9,1.41735439]
[1645839326150,0.00312568,2824.2,2823.9,1.41735439]
[1645839327150,0.23478694,2824.7,2823.9,1.41735439]
[1645839327151,0.22228638,2824.7,2823.9,1.41735439]
[1645839327351,0.00312568,2824.2,2823.9,1.41735439]
[1645839328354,0.22228638,2824.7,2823.6,0.00476136]
[1645839328596,0.00311254,2824.2,2823.4,0.00476136]
[1645839328796,0.25311254,2824.2,2823.4,0.00476136]
[1645839329700,0.00311254,2823.9,2823.8,1.32209552]
[1645839329899,0.00311254,2823.9,2823.4,0.00476136]
[1645839330095,0.00311254,2823.9,2823.3,4.9906]
[1645839330700,0.25,2824.2,2823.3,4.9906]
[1645839330902,0.00311254,2823.7,2823.4,0.00476136]
[1645839331099,0.00311254,2823.7,2823.5,1.13575318]
[1645839331500,0.00311254,2823.7,2823.3,4.9906]
[1645839331901,0.25,2824.2,2823.3,4.9906]
[1645839332100,0.25,2824.2,2823.4,0.00476136]
[1645839332355,0.00311254,2823.7,2823.4,0.00476136]
[1645839332550,0.00311254,2823.7,2822.9,0.00476136]
[1645839332955,0.6033,2823.6,2822.9,0.00476136]
[1645839333361,0.0031145,2823.4,2822.7,5.1544]
[1645839333759,0.0031145,2823.4,2822.7,1.22691323]
[1645839334358,0.6033,2823.6,2822.7,1.22691323]
[1645839334556,0.6033,2823.6,2822.3,0.00476136]
[1645839334557,1.2392733,2823.5,2822.3,0.00476136]
[1645839335460,12.72084868,2823.5,2822.3,0.00476136]
[1645839335662,11.31126946,2823.4,2822.3,0.00476136]
[1645839335859,0.19540114,2823.3,2822.3,0.00476136]
[1645839336908,0.00374066,2822.9,2822.2,1.12170153]
[1645839337109,0.25374066,2822.9,2822.2,0.97646289]
[1645839337913,0.25,2822.9,2822.2,0.97646289]
[1645839338109,0.00374066,2822.7,2822.2,0.97646289]
[1645839338313,0.00374066,2822.7,2822.1,0.00577221]
[1645839339110,0.25,2823.2,2821.9,0.3533]
[1645839339511,0.00374066,2822.5,2822.4,1.21263766]
[1645839340543,0.00374066,2822.6,2822.4,1.21263766]
[1645839341553,0.25,2823.2,2821.9,1.5528]
[1645839341751,0.00302965,2822.6,2822.1,0.00517882]
[1645839342753,0.25,2823.2,2822.4,1.32351232]
[1645839342958,0.00302965,2822.5,2822.1,0.00517877]
[1645839343800,0.25,2823.2,2821.9,1.20423399]
[1645839344001,0.25,2823.2,2822.3,1.38677038]
[1645839344202,0.25,2823.2,2822.4,0.00473399]
[1645839344704,0.25,2823.2,2822.1,0.00517875]
[1645839345105,0.25,2823.2,2822.0,0.00473399]
[1645839345309,0.00374066,2822.9,2822.1,0.00577231]
[1645839345908,0.00374066,2822.9,2822.4,1.02150047]
[1645839346309,0.25,2823.2,2822.4,1.02150047]
[1645839346508,0.00374066,2822.6,2822.4,1.02150047]
[1645839346709,0.00374066,2822.6,2822.1,0.00577219]
[1645839347539,0.25,2823.2,2822.0,0.00473399]
[1645839347747,0.00374066,2822.5,2822.1,0.00577213]
[1645839347941,0.00374066,2822.5,2822.4,1.28666949]
[1645839348943,0.00351067,2822.6,2822.4,1.28666949]
[1645839349350,0.00351067,2822.6,2821.4,0.02238531]
[1645839349351,0.01289485,2822.5,2821.4,0.02238531]
[1645839349558,3.92048413,2822.5,2821.9,0.00470654]
[1645839349753,17.1533,2822.0,2821.4,0.02238531]
[1645839349944,0.3533,2821.8,2821.0,3.7491348]
[1645839350144,0.3033,2821.8,2821.0,3.7491348]
[1645839350347,0.6033,2821.8,2821.0,3.7491348]
[1645839350544,5.3033,2821.7,2821.0,3.7491348]
[1645839350752,6.3033,2821.7,2821.0,3.7491348]
[1645839351005,1.3033,2821.7,2821.0,3.6991348]
[1645839351211,0.3033,2821.7,2821.0,3.6991348]
[1645839351410,0.74404584,2821.8,2821.0,3.6991348]
[1645839351810,0.5669,2821.8,2821.0,3.6991348]
[1645839352412,0.5669,2821.8,2821.0,4.85159965]
[1645839352611,1.4534486,2821.8,2821.3,0.00577532]
[1645839352809,1.35972956,2821.8,2821.3,0.00577532]
[1645839353037,1.1501486,2821.8,2821.3,0.00577532]
[1645839354011,1.1501486,2821.8,2821.4,0.00577507]
[1645839354212,1.33108346,2821.8,2821.4,0.00577507]
[1645839354846,0.2636,2821.8,2821.4,0.00577507]
[1645839355048,0.2636,2821.8,2821.5,0.00577499]
[1645839356150,0.2636,2821.8,2821.5,0.0115499]
[1645839356354,0.2636,2821.8,2821.5,0.00577491]
[1645839357152,0.2636,2821.8,2821.1,0.00468159]
[1645839357351,0.2636,2821.8,2821.5,0.00537583]
[1645839358351,0.2636,2821.8,2821.2,0.00468159]
[1645839358600,0.2636,2821.8,2821.5,0.00537583]
[1645839359392,0.2636,2821.8,2821.2,0.00468159]
[1645839359592,0.2636,2821.8,2821.0,3.6991348]
[1645839359792,0.2636,2821.8,2821.5,0.00537583]
[1645839360599,0.2636,2821.8,2821.7,1.06707043]
[1645839361401,0.2636,2821.8,2820.3,3.63001105]
[1645839361402,0.3533,2821.6,2820.3,3.63001105]
[1645839361605,5.01294814,2820.4,2820.0,9.95]
[1645839361805,3.5,2820.3,2820.0,9.95]
[1645839362003,0.01237499,2820.1,2820.0,4.51871655]
[1645839362268,15.972,2820.0,2818.2,3.8543]
[1645839362454,11.05,2819.8,2818.5,1.08500576]
[1645839362653,0.1418,2819.7,2818.5,1.08500576]
[1645839362953,1.40225843,2819.6,2818.5,1.08500576]
[1645839363558,1.25,2819.8,2818.5,0.3533]
[1645839363761,0.25,2819.8,2818.5,0.3533]
[1645839364553,0.25,2819.8,2819.1,0.00578424]
[1645839364760,5.0,2819.7,2819.1,0.00578424]
[1645839364962,5.0,2819.7,2818.6,0.07324043]
[1645839364963,0.1418,2819.7,2818.6,0.02902467]
[1645839365158,1.4418,2819.7,2818.6,0.02902467]
[1645839365354,0.61936037,2819.7,2818.6,0.02902467]
[1645839365557,1.62032857,2819.7,2818.6,0.00588424]
[1645839365761,12.42976654,2819.7,2818.6,0.00588424]
[1645839366015,10.8,2819.5,2818.6,0.00588424]
[1645839366222,11.8,2819.4,2818.6,0.00588424]
[1645839366420,12.00562601,2819.4,2818.6,0.00588424]
[1645839366616,0.3533,2819.3,2818.6,0.00588424]
[1645839366815,16.1533,2818.7,2818.6,8.424e-05]
[1645839367025,16.1533,2818.7,2817.5,0.017908]
[1645839367026,0.0008,2818.2,2817.5,0.017908]
[1645839367222,0.0008,2818.2,2816.8,0.5]
[1645839367223,0.15089233,2817.6,2816.8,0.5]
[1645839367417,1.0,2818.0,2816.5,1.0]
[1645839367418,0.19539135,2817.9,2816.5,1.0]
[1645839367621,0.3533,2817.9,2817.6,0.04443194]
[1645839367820,1.0783,2817.9,2816.8,1.41364533]
[1645839368018,1.76663722,2817.9,2816.8,1.41364533]
[1645839368219,0.17319745,2817.7,2816.9,0.00466555]
[1645839368419,0.88792,2817.7,2816.9,0.00466555]
[1645839368623,0.88792,2817.7,2815.6,0.5]
[1645839368624,0.3533,2817.0,2815.6,0.5]
[1645839368930,0.25,2816.7,2815.6,0.51250212]
[1645839369121,0.25,2816.7,2815.2,1.2191]
[1645839369330,0.25,2816.7,2815.4,3.93595491]
[1645839369626,0.19991952,2817.5,2815.4,3.93595491]
[1645839369627,0.25,2817.5,2816.2,0.0057947]
[1645839370073,2.39954955,2818.0,2816.2,3.8590947]
[1645839370269,2.39954955,2818.0,2816.2,15.0840947]
[1645839370474,2.39954955,2818.0,2816.2,15.3783]
[1645839370669,2.39954955,2818.0,2817.9,1.37098671]
[1645839370868,2.39954955,2818.0,2816.7,0.00462573]
[1645839371071,0.25,2818.1,2816.9,0.88734]
[1645839371272,0.25,2818.1,2817.0,3.5]
[1645839371874,0.25,2818.1,2817.4,0.00462466]
[1645839372075,0.25,2818.1,2817.5,1.30112274]
[1645839372976,0.25,2818.1,2817.7,0.00462417]
[1645839373997,0.25,2818.1,2816.9,3.5]
[1645839374194,0.25,2818.1,2816.7,1.0]
[1645839374393,0.25,2818.1,2817.8,0.00565995]
[1645839375195,0.25,2818.1,2818.0,1.33838276]
[1645839375593,0.25,2818.1,2817.8,0.00565987]
[1645839376398,0.25,2818.1,2816.9,0.00461098]
[1645839376798,0.25,2818.1,2817.8,0.00565987]
[1645839377448,0.25,2818.1,2817.9,1.09009801]
[1645839378254,0.25,2818.1,2817.8,0.00562879]
[1645839378650,1.25,2818.1,2817.8,0.00562879]
[1645839378852,0.6033,2818.1,2817.8,0.00562879]
[1645839379052,0.7452,2818.1,2817.8,0.00562879]
[1645839379260,0.7452,2818.1,2817.8,0.00540999]
[1645839379261,11.1533,2818.0,2817.8,0.00540999]
[1645839379652,12.1533,2818.0,2817.8,0.00540999]
[1645839379852,14.55284955,2817.9,2817.8,9.99e-06]
[1645839380061,14.55284955,2817.9,2816.6,0.00461098]
[1645839380062,11.1533,2817.8,2816.6,0.00461098]
[1645839380255,11.1533,2817.4,2816.4,0.00461098]
[1645839380451,0.1419,2817.3,2816.1,0.00461098]
[1645839380651,11.2952,2817.3,2816.1,0.00461098]
[1645839381104,13.55284955,2817.2,2816.5,1.34502113]
[1645839381308,14.85284955,2817.2,2816.5,1.34502113]
[1645839381505,15.01405092,2817.2,2816.6,0.00451427]
[1645839381706,0.8880044,2817.0,2816.6,0.00451427]
[1645839381908,0.25,2817.0,2816.6,0.00451427]
[1645839382301,0.25,2817.0,2816.5,1.34502113]
[1645839382704,0.25,2817.0,2816.7,0.00569605]
[1645839383604,0.25,2817.0,2816.1,0.00461098]
[1645839383906,0.25,2817.0,2816.7,0.00569597]
[1645839384510,1.138024,2817.0,2816.7,0.00569597]
[1645839384752,1.138024,2817.0,2816.1,0.00461098]
[1645839384753,1.33673266,2817.0,2816.1,0.00461098]
[1645839384957,0.3,2816.9,2816.1,0.00461098]
[1645839385160,0.47384016,2816.9,2816.7,0.00579744]
[1645839385558,11.1533,2816.8,2816.7,0.00579744]
[1645839385759,12.4533,2816.8,2816.7,0.00579744]
[1645839385966,12.62672615,2816.8,2815.7,0.00461098]
[1645839386159,0.8881654,2816.5,2815.7,0.00461098]
[1645839386360,0.25,2816.4,2815.7,0.00461098]
[1645839386562,0.25,2816.4,2815.5,0.00461098]
[1645839388062,0.25,2816.4,2815.5,3.85791098]
[1645839388506,0.25,2816.4,2815.5,0.35791098]
[1645839388696,0.25,2816.4,2815.8,0.00580094]
[1645839388897,0.25,2816.4,2816.0,1.08469296]
[1645839389905,0.25,2816.4,2816.1,0.00539836]
[1645839390707,0.25,2816.4,2816.0,1.08469296]
[1645839391107,0.25,2816.4,2816.1,0.00539829]
[1645839391907,0.25,2816.4,2815.7,0.02159638]
[1645839392108,0.25,2816.4,2815.6,0.00461098]
[1645839392349,0.25,2816.4,2816.1,0.00539829]
[1645839393356,0.25,2816.4,2816.1,0.01079658]
[1645839393549,0.25,2816.4,2816.1,0.00539829]
[1645839393953,0.25,2816.4,2815.4,3.76681456]
[1645839394958,0.3533,2816.3,2815.4,3.76681456]
[1645839395352,11.1533,2816.3,2815.4,3.76681456]
[1645839395555,0.3533,2816.3,2815.4,3.76681456]
[1645839395755,1.3533,2816.3,2815.6,1.31688688]
[1645839396036,0.00121233,2816.0,2815.6,1.31688688]
[1645839396728,0.3533,2816.3,2815.6,1.31688688]
[1645839396926,0.3533,2816.3,2815.4,3.76681456]
[1645839397125,12.32107342,2816.4,2815.4,3.76681456]
[1645839397126,1.33899993,2816.4,2815.4,3.76681456]
[1645839397329,2.33899993,2816.4,2815.4,3.76681456]
[1645839397533,2.31442808,2816.4,2815.4,3.76681456]
[1645839397927,2.1381995,2816.4,2815.8,1.11708194]
[1645839398229,0.25,2816.4,2815.6,0.00459004]
[1645839399230,0.6033,2816.4,2815.6,1.43595841]
[1645839399428,0.00404493,2816.1,2815.6,1.44176103]
[1645839399631,0.00404493,2816.1,2815.6,0.00580262]
[1645839400362,0.43318261,2816.4,2815.4,3.76681456]
[1645839400565,1.25,2816.4,2815.5,0.00459006]
[1645839400764,1.25,2816.4,2815.6,0.00580052]
[1645839400765,0.00403813,2816.0,2815.6,0.00580052]
[1645839401567,0.6033,2816.4,2815.4,3.76681456]
[1645839401568,0.6033,2816.4,2815.5,1.32889108]
[1645839401770,0.3533,2816.2,2815.5,1.33348114]
[1645839401966,0.00403813,2815.9,2815.6,0.0058005]
[1645839402771,13.21543068,2816.2,2815.4,3.76681456]
[1645839403167,0.25,2815.8,2815.4,3.76681456]
[1645839403618,0.25,2815.8,2815.5,1.41862092]
[1645839406027,0.25,2815.8,2815.4,3.5840496]
[1645839406231,0.25,2815.8,2815.7,1.23834983]
[1645839406825,0.25,2815.8,2815.4,3.5840496]
[1645839406826,0.25,2815.8,2815.5,0.00578437]
[1645839407853,0.25,2815.8,2815.7,1.1326624]
[1645839408065,0.25,2815.8,2815.5,0.00565238]
[1645839408855,0.25,2815.8,2815.4,3.5840496]
[1645839409056,0.25,2815.8,2815.5,0.00565238]
[1645839410056,0.25,2815.8,2815.4,4.97235647]
[1645839410256,0.25,2815.8,2815.5,0.00565238]
[1645839411506,0.25,2815.8,2815.5,0.00577981]
[1645839414760,1.138361,2815.8,2815.5,0.00577981]
[1645839415547,1.138361,2815.8,2815.5,0.00515748]
[1645839415750,1.30475449,2815.8,2815.5,0.00515748]
[1645839415958,3.43514449,2815.8,2815.5,0.00515748]
[1645839416157,3.43514449,2815.8,2815.5,5.748e-05]
[1645839416158,11.1533,2815.6,2815.5,5.748e-05]
[1645839416361,0.3533,2815.2,2814.9,0.02063473]
[1645839416554,0.16396381,2815.1,2814.9,0.02063473]
[1645839416754,1.2420214,2815.2,2814.9,0.04126946]
[1645839417053,0.16179331,2815.1,2814.9,0.02063473]
[1645839417259,0.16179331,2815.1,2814.1,3.41075959]
[1645839417260,0.88882,2814.7,2814.1,3.41075959]
[1645839417459,0.25,2814.6,2814.1,3.41075959]
[1645839417859,11.60556516,2814.6,2814.1,3.41075959]
[1645839418056,11.74766516,2814.6,2814.1,3.41075959]
[1645839418358,12.5454,2814.6,2814.1,3.41075959]
[1645839418616,12.70879177,2814.6,2814.1,3.41075959]
[1645839418810,2.44445177,2814.6,2814.1,3.41075959]
[1645839419008,13.2670364,2814.6,2814.2,0.00578808]
[1645839419210,18.6920364,2814.6,2814.2,8.808e-05]
[1645839419416,9.0,2814.1,2812.4,8.45]
[1645839419615,0.88925,2813.7,2812.5,3.862]
[1645839419812,12.12215224,2813.7,2812.5,3.862]
[1645839420013,0.88932,2813.6,2812.5,3.862]
[1645839420212,1.32215224,2813.7,2812.5,4.2153]
[1645839420213,0.25,2813.7,2812.5,4.2153]
[1645839420614,0.25,2813.7,2813.0,1.26425662]
[1645839420811,0.25,2813.7,2813.0,1.21425662]
[1645839421011,0.25,2813.7,2813.0,1.56755662]
[1645839421220,0.25,2813.7,2813.1,0.1421]
[1645839421414,1.0,2814.0,2813.1,0.1421]
[1645839421619,0.25,2814.4,2813.5,0.3533]
[1645839421814,0.25,2814.4,2813.8,0.3533]
[1645839422013,0.25,2814.4,2813.9,0.1421]
[1645839422256,0.25,2814.4,2814.2,1.25270991]
[1645839422761,1.9193446,2815.3,2814.2,1.25270991]
[1645839422762,1.20472738,2815.3,2814.2,1.25270991]
[1645839422963,0.25,2815.2,2814.2,1.25270991]
[1645839423462,0.25,2815.2,2814.3,0.00456698]
[1645839423463,0.15357924,2815.1,2814.3,0.00456698]
[1645839423767,11.12283614,2815.0,2814.3,0.00456698]
[1645839423961,11.12283614,2815.0,2813.8,0.00456698]
[1645839423962,0.19480813,2815.0,2813.8,0.00456698]
[1645839424161,1.0,2815.0,2813.8,0.00456698]
[1645839424363,0.00419414,2814.8,2813.8,0.00456698]
[1645839425063,10.80419414,2814.8,2813.8,0.00456698]
[1645839425265,0.25,2814.6,2813.8,0.00456698]
[1645839425463,0.00419414,2814.4,2813.7,0.00576843]
[1645839426114,0.00419414,2814.4,2814.0,1.37112707]
[1645839426709,0.00419414,2814.2,2813.7,0.00576832]
[1645839427509,0.18124879,2814.2,2813.7,0.00576832]
[1645839427711,0.00419414,2814.2,2813.7,0.00576832]
[1645839427911,0.00419414,2814.1,2813.7,0.01153659]
[1645839428111,0.00419414,2814.1,2813.7,0.00576827]
[1645839428312,0.25,2814.0,2813.7,0.00576827]
[1645839428513,0.25,2814.0,2813.3,0.31363525]
[1645839429112,0.25,2814.0,2813.9,1.26934114]
[1645839429311,0.2534167,2814.0,2813.7,0.00513599]
[1645839430361,0.2534167,2814.0,2813.7,1.04173311]
[1645839430567,0.25,2814.0,2812.7,4.0211]
[1645839431571,0.25,2814.0,2813.5,1.31457414]
[1645839431867,0.25,2814.0,2812.7,4.0211]
[1645839432071,0.17072939,2813.9,2812.7,4.0211]
[1645839432266,0.31282939,2813.9,2812.7,4.0211]
[1645839432467,11.1533,2813.6,2812.9,0.02307902]
[1645839432680,11.1533,2813.6,2812.0,0.000801]
[1645839432681,0.06915803,2812.8,2812.0,0.000801]
[1645839432872,0.889425,2812.6,2811.5,3.897401]
[1645839433066,1.31568264,2812.6,2811.5,3.897401]
[1645839433266,1.492725,2812.6,2811.1,1.0]
[1645839433529,0.52991582,2812.4,2811.1,1.0]
[1645839433713,3.9954,2812.3,2810.7,1.1765]
[1645839433912,0.8896315,2812.0,2811.1,0.007]
[1645839434118,1.31174361,2812.0,2811.1,0.007]
[1645839434324,1.61174361,2812.0,2811.1,0.007]
[1645839434920,4.05673979,2811.9,2810.5,7.4115485]
[1645839435123,1.24317,2811.6,2810.4,0.01779096]
[1645839435318,0.25,2811.3,2810.4,0.01779096]
[1645839435517,0.41510733,2811.3,2810.4,0.01779096]
[1645839435716,0.25,2811.3,2810.5,0.04035807]
[1645839436114,0.25,2811.3,2811.0,1.39047602]
[1645839436518,0.25,2811.3,2811.0,1.74377602]
[1645839436918,0.25,2811.3,2811.0,1.34047602]
[1645839437255,0.25,2811.3,2811.0,1.34624405]
[1645839438457,0.25,2811.3,2811.0,1.30201208]
[1645839438662,0.25,2811.3,2811.0,1.29624405]
[1645839439064,0.25,2811.3,2811.0,0.00576803]
[1645839439859,0.25,2811.3,2810.5,0.04035807]
[1645839440061,1.25,2811.3,2810.5,0.04035807]
[1645839440261,0.88999,2811.2,2810.5,0.04035807]
[1645839440464,0.88999,2811.2,2810.5,5.807e-05]
[1645839440465,0.20645264,2811.1,2810.5,5.807e-05]
[1645839440666,0.0120643,2810.9,2810.5,5.807e-05]
[1645839440866,0.0120643,2810.9,2809.4,1.0]
[1645839440867,17.6533,2810.6,2809.4,1.0]
[1645839441115,0.25,2810.3,2809.4,1.0]
[1645839441314,2.0305109,2810.3,2809.4,1.0]
[1645839441514,2.19110478,2810.3,2809.7,1.01411303]
[1645839441821,2.0305109,2810.3,2809.5,0.00452691]
[1645839442216,0.25,2810.3,2809.7,0.00575806]
[1645839443218,0.25,2810.3,2809.9,0.00575783]
[1645839443424,1.0,2811.0,2809.9,0.00575783]
[1645839443619,0.25,2811.1,2809.9,0.00575783]
[1645839444218,0.25,2811.1,2810.6,1.28287072]
[1645839445271,0.25,2811.1,2810.6,1.63617072]
[1645839445479,1.25,2811.7,2810.7,5.0]
[1645839445686,0.25,2811.7,2810.8,0.3533]
[1645839445872,0.25,2811.7,2811.0,0.3533]
[1645839446478,0.25,2811.7,2811.2,0.3533]
[1645839447084,0.25,2811.7,2811.2,0.35905354]
[1645839447276,0.25,2812.3,2811.2,0.35905354]
[1645839447477,0.25,2812.3,2811.3,0.00452483]
[1645839447676,0.25,2812.3,2811.8,1.41481279]
[1645839448081,0.25,2812.3,2811.8,1.76811279]
[1645839449307,0.25,2812.3,2811.9,0.00575243]
[1645839450314,0.25,2812.3,2811.8,1.76811279]
[1645839450611,1.0,2812.7,2812.0,0.00575235]
[1645839450815,1.25,2812.7,2812.0,0.00575235]
[1645839451014,1.25,2812.7,2812.3,1.07710217]
[1645839451617,0.25,2812.7,2812.4,0.00446538]
[1645839452763,0.52184302,2812.2,2811.8,0.3533]
[1645839452962,0.52184302,2812.2,2812.0,1.60572569]
[1645839453662,0.52184302,2812.2,2812.1,0.3533]
[1645839455064,0.06915803,2812.8,2812.1,0.3533]
[1645839455274,0.06915803,2812.8,2812.4,0.3533]
[1645839455463,0.06915803,2812.8,2812.6,0.3533]
[1645839456213,0.00432294,2812.9,2812.7,1.65870065]
[1645839456618,0.00432378,2812.9,2812.7,1.65870065]
[1645839457113,0.00432378,2812.9,2812.7,3.08370065]
[1645839457525,0.4954,2814.5,2812.9,0.3533]
[1645839457813,1.85609157,2814.4,2812.9,0.3533]
[1645839458016,1.50279157,2814.3,2813.0,0.00452483]
[1645839458614,1.50279157,2814.3,2813.6,1.08706554]
[1645839459015,0.00121807,2813.8,2813.6,1.08706554]
[1645839459865,0.25,2813.9,2813.6,1.08706554]
[1645839460079,0.00121807,2813.8,2813.6,1.08706554]
[1645839461073,0.00121807,2813.8,2813.2,0.00452483]
[1645839461279,0.25,2813.9,2812.9,0.00452483]
[1645839461472,0.00404755,2813.8,2812.9,0.00452483]
[1645839462074,0.00404755,2813.8,2813.0,1.2542351]
[1645839462274,0.00404755,2813.8,2812.9,0.00452483]
[1645839462475,0.00389181,2813.5,2812.9,0.00452483]
[1645839462683,0.00389181,2813.5,2812.7,0.35782483]
[1645839462877,0.00389181,2813.5,2812.7,0.30782483]
[1645839463505,0.25,2813.9,2813.1,1.32053848]
[1645839463716,0.00389181,2813.2,2812.8,0.00452483]
[1645839463908,0.00389181,2813.2,2812.6,5.1942]
[1645839464115,0.25389181,2813.2,2812.6,5.1942]
[1645839464313,0.25389181,2813.2,2812.4,0.00452483]
[1645839464513,0.20389181,2813.2,2812.4,0.00452483]
[1645839464717,0.20389181,2813.2,2812.3,0.00563181]
[1645839464921,0.00389181,2813.0,2812.3,0.01126354]
[1645839465119,0.00389181,2813.0,2812.3,0.00563173]
[1645839465330,0.4954,2812.9,2812.3,0.00563173]
[1645839465521,1.3533,2812.5,2812.3,0.00563173]
[1645839465715,0.1421,2812.4,2812.3,0.00563173]
[1645839466113,1.4954,2812.4,2812.3,0.00563173]
[1645839466312,1.4954,2812.4,2812.3,0.00534972]
[1645839466515,0.4954,2812.4,2812.3,0.00534972]
[1645839467363,0.4954,2812.4,2812.2,0.00534972]
[1645839468163,0.3533,2812.4,2812.2,0.00534972]
[1645839468569,0.3533,2812.4,2812.2,0.0053498]
[1645839469470,0.3533,2812.4,2810.7,0.00452483]
[1645839469671,0.25,2812.1,2810.7,0.00452483]
[1645839469869,0.25,2812.1,2811.7,0.02149706]
[1645839470871,0.25,2812.1,2811.8,0.00537407]
[1645839471811,0.25,2812.1,2811.0,0.00452483]
[1645839472212,0.25,2812.1,2811.8,0.00537399]
[1645839473018,0.25,2812.1,2811.4,1.42825579]
[1645839473212,0.25,2812.1,2811.1,0.00452483]
[1645839473417,0.25,2812.1,2811.8,0.00575854]
[1645839474313,0.25,2812.1,2810.6,0.33662098]
[1645839474514,0.25,2812.1,2811.8,0.00575854]
[1645839475767,0.25,2812.1,2812.0,1.27029425]
[1645839475970,0.4954,2813.0,2812.0,1.27029425]
[1645839476172,0.25,2812.9,2812.0,1.27029425]
[1645839477271,0.00361459,2812.6,2812.0,1.27029425]
[1645839477874,0.25,2812.9,2812.0,1.27029425]
[1645839478273,0.00361459,2812.4,2812.0,1.27029425]
[1645839479109,0.25,2812.9,2812.0,1.27029425]
[1645839479311,0.00361459,2812.3,2812.0,1.27029425]
[1645839480508,0.00361459,2812.3,2812.0,1.60691523]
[1645839480509,0.00438476,2812.3,2812.0,1.60691523]
[1645839480908,0.00438476,2812.3,2812.1,1.33662098]
[1645839481509,0.25,2812.9,2812.1,12.13662098]
[1645839481711,0.25,2812.9,2812.1,1.33662098]